bitfinex/quotes_ETHUSD_20240703
["timestamp","ask_amount","ask_price","bid_price","bid_amount"]
[1720036488085,1.26204197,3272.9,3272.7,3.05558]
[1720036488285,0.94628181,3273.0,3272.9,3.05539]
[1720036488489,0.94628181,3273.2,3273.1,3.0552]
[1720036488895,0.94628181,3273.4,3273.2,3.05511]
[1720036489091,0.94628181,3273.4,3273.3,3.05502]
[1720036489292,0.94628181,3273.6,3273.3,5.44832]
[1720036489646,0.94628181,3273.7,3273.5,3.05478]
[1720036490157,0.94628181,3273.7,3273.6,3.11583029]
[1720036490345,0.94628181,3273.9,3273.7,3.05464]
[1720036490633,0.94628181,3274.0,3273.9,3.05446]
[1720036491005,1.26204197,3274.0,3273.9,3.05446]
[1720036491433,0.94642065,3274.0,3273.9,3.05446]
[1720036491631,0.94642065,3274.0,3273.9,0.84715845]
[1720036491834,1.26204197,3274.1,3273.9,0.84715845]
[1720036492162,1.26204197,3274.0,3273.8,2.3014]
[1720036492447,1.5772269,3274.0,3273.5,3.05482]
[1720036492669,3.05404,3274.4,3273.5,3.05482]
[1720036492670,0.94624982,3273.6,3273.5,3.05482]
[1720036492804,3.05404,3274.4,3273.5,3.05482]
[1720036493009,0.94625123,3273.6,3273.5,3.05482]
[1720036493254,0.94625123,3273.6,3273.5,3.82383164]
[1720036495653,0.94625123,3273.7,3273.5,3.82383164]
[1720036496549,0.94625123,3273.6,3273.5,3.82383164]
[1720036496917,0.94625123,3273.7,3273.5,3.82383164]
[1720036497348,0.94625123,3273.7,3273.6,6.72583316]
[1720036497509,1.57750331,3274.0,3273.6,6.72583316]
[1720036497510,0.63103728,3273.9,3273.8,6.1091]
[1720036497946,0.63103728,3273.9,3273.8,3.05455]
[1720036498245,0.94625123,3274.0,3273.8,6.1091]
[1720036498636,1.26166831,3274.1,3274.0,3.05436]
[1720036498836,1.26166831,3274.1,3274.0,3.665251]
[1720036499187,1.26166831,3274.2,3274.0,3.665251]
[1720036499458,0.94658936,3274.1,3274.0,3.665251]
[1720036500450,1.26166831,3274.3,3274.1,3.05427]
[1720036500965,0.94662866,3274.2,3274.1,5.46077]
[1720036501129,0.94662866,3274.2,3274.1,6.37948806]
[1720036501544,3.05335,3275.1,3274.1,9.43368806]
[1720036501874,3.05335,3275.1,3274.1,5.4607]
[1720036501875,0.94628099,3274.2,3274.1,5.4607]
[1720036502175,0.94628099,3274.3,3274.2,3.05418]
[1720036502524,0.94628099,3274.3,3274.2,6.10836]
[1720036502752,0.63093381,3274.3,3274.2,7.0209351]
[1720036503261,0.94628099,3274.5,3274.3,6.10816]
[1720036503262,0.63093381,3274.4,3274.3,6.10816]
[1720036503640,0.63093381,3274.5,3274.4,6.10798]
[1720036504162,0.63093381,3274.6,3274.5,6.1078]
[1720036504323,0.63093381,3274.6,3274.5,6.71858]
[1720036504521,0.63093381,3274.6,3274.5,9.05418]
[1720036505263,0.94628099,3274.8,3274.7,3.05371]
[1720036505419,0.94628099,3274.9,3274.8,3.05362]
[1720036505620,1.26170799,3275.1,3274.9,3.05352]
[1720036505621,0.94628099,3275.0,3274.9,3.05352]
[1720036505831,1.26170799,3275.1,3274.9,3.05352]
[1720036506137,1.57733993,3275.2,3274.9,7.45512]
[1720036506138,0.63097174,3275.2,3274.9,7.45512]
[1720036506332,0.63097174,3275.3,3274.9,4.4016]
[1720036506531,0.63088717,3275.3,3275.2,3.05324]
[1720036506736,0.63088717,3275.4,3275.3,3.05315]
[1720036507627,0.94611858,3275.6,3275.4,3.05299]
[1720036508067,1.57686431,3275.9,3275.7,9.15834]
[1720036508229,0.63098264,3276.5,3276.0,3.05242]
[1720036508425,0.63098264,3276.4,3275.7,3.05277]
[1720036508648,0.63098264,3276.3,3275.5,5.35429]
[1720036508927,0.63098264,3275.8,3275.5,5.35436]
[1720036509247,0.63098264,3275.9,3275.6,3.05282]
[1720036509420,0.63098264,3276.0,3275.7,3.05277]
[1720036509770,0.63098264,3276.0,3275.8,3.05267]
[1720036510063,0.63098264,3275.9,3275.5,2.3014]
[1720036510283,0.63098264,3275.8,3275.4,3.053]
[1720036510587,0.63098264,3275.9,3275.5,3.05293]
[1720036510868,0.62958366,3275.9,3275.5,3.05293]
[1720036511081,0.62958366,3275.9,3275.1,2.3014]
[1720036511228,0.62958366,3275.9,3274.9,3.05346]
[1720036511229,0.62958366,3275.6,3274.9,3.05346]
[1720036511426,0.62958366,3275.5,3274.9,3.05346]
[1720036511885,0.62958366,3275.5,3275.0,3.05342]
[1720036512180,0.62958366,3275.8,3275.5,3.05296]
[1720036512328,0.62958366,3275.9,3275.5,6.10586]
[1720036512667,0.62958366,3275.9,3275.5,3.0529]
[1720036512853,1.7314297,3276.4,3275.5,3.0529]
[1720036512854,0.62958366,3276.0,3275.5,3.0529]
[1720036513527,0.62958366,3276.1,3275.7,3.05277]
[1720036514130,0.62958366,3276.1,3275.1,5.35471]
[1720036514338,0.62958366,3275.9,3274.3,2.3014]
[1720036514665,3.68229366,3275.8,3274.7,3.05365]
[1720036514864,0.62958366,3275.4,3274.8,3.05359]
[1720036516550,0.62958366,3275.4,3274.6,3.05379]
[1720036516750,3.05281,3275.7,3274.6,3.05379]
[1720036516751,0.62958366,3275.3,3274.6,3.05379]
[1720036516968,0.62958366,3275.2,3274.5,3.05389]
[1720036517147,0.62958366,3275.2,3274.5,6.1077]
[1720036517463,0.62958366,3275.2,3274.5,3.05381]
[1720036517662,0.62958366,3275.0,3274.3,2.3014]
[1720036518274,0.62958366,3275.0,3274.3,5.35548]
[1720036518783,0.62958366,3274.8,3273.9,3.05437]
[1720036519094,0.62958366,3274.7,3273.9,6.963447]
[1720036519296,0.62958366,3274.7,3273.8,2.4381]
[1720036519461,0.62958366,3274.5,3273.8,5.49264]
[1720036519661,0.62958366,3274.6,3274.0,3.05433]
[1720036520183,0.62958366,3274.7,3274.0,3.05433]
[1720036520709,0.62958366,3274.6,3273.8,5.49256]
[1720036520860,0.62958366,3274.6,3273.9,3.05444]
[1720036521207,0.62958366,3274.6,3273.8,2.4381]
[1720036521403,0.62958366,3274.6,3273.9,3.05445]
[1720036521693,0.62958366,3274.7,3273.8,5.49257]
[1720036521993,0.62958366,3274.6,3273.9,3.05445]
[1720036522292,0.62958366,3274.7,3274.0,3.05436]
[1720036523762,0.62958366,3274.7,3274.1,3.05425]
[1720036523989,0.62958366,3274.8,3274.1,3.05425]
[1720036524196,0.62958366,3274.8,3274.0,3.05427]
[1720036524408,0.62958366,3274.9,3274.6,3.05375]
[1720036524558,0.62958366,3275.2,3274.7,2.4972]
[1720036524763,0.62958366,3275.3,3274.7,2.4972]
[1720036525059,0.94300862,3275.5,3274.7,2.4972]
[1720036525060,0.62958366,3275.4,3274.8,3.05354]
[1720036525708,0.62958366,3275.4,3274.9,3.05352]
[1720036526105,0.62958366,3275.5,3274.9,3.05352]
[1720036526309,0.62958366,3275.4,3274.9,3.05352]
[1720036526647,0.62958366,3275.5,3274.9,3.05352]
[1720036526849,0.62958366,3275.5,3275.2,3.05316]
[1720036527014,0.62958366,3275.7,3275.3,3.05314]
[1720036527223,0.62958366,3275.8,3275.3,3.05314]
[1720036529267,0.62958366,3275.8,3275.5,3.05295]
[1720036529430,0.62958366,3276.0,3275.6,5.36291]
[1720036529630,0.62958366,3276.1,3275.6,2.3101]
[1720036529821,0.62958366,3276.3,3275.9,3.05258]
[1720036530272,0.62958366,3276.4,3275.9,3.05258]
[1720036530629,0.62958366,3276.4,3275.7,3.05273]
[1720036530813,0.62958366,3276.3,3275.6,2.3101]
[1720036531048,0.62958366,3276.1,3275.1,5.53971]
[1720036531246,0.62958366,3275.9,3275.3,3.05308]
[1720036531419,0.62958366,3276.0,3275.3,3.05308]
[1720036531621,0.62958366,3275.9,3275.3,3.05308]
[1720036532035,0.62958366,3276.0,3275.8,3.05266]
[1720036532241,0.62958366,3276.1,3275.8,3.05266]
[1720036532567,3.63004654,3276.3,3276.0,3.05242]
[1720036532723,0.63004654,3276.4,3276.1,3.05237]
[1720036533163,0.63004654,3276.5,3276.1,3.05237]
[1720036533458,0.63004654,3276.4,3276.1,3.05237]
[1720036534664,0.63004654,3276.5,3276.3,2.383]
[1720036534869,0.63004654,3276.6,3276.3,5.43513]
[1720036535151,0.63004654,3276.8,3276.5,3.05203]
[1720036535453,0.63004654,3276.8,3276.6,3.05194]
[1720036535664,0.63004654,3276.9,3276.6,3.05194]
[1720036535957,0.63004654,3276.9,3276.3,5.43517]
[1720036536130,0.63004654,3276.9,3276.5,3.05201]
[1720036536465,0.63004654,3276.9,3276.5,3.05198]
[1720036536853,0.63004654,3276.9,3276.5,3.05197]
[1720036537035,0.63004654,3276.9,3276.6,3.05185]
[1720036537224,0.63004654,3277.1,3276.6,3.05185]
[1720036537421,0.63004654,3277.3,3276.6,3.05185]
[1720036537743,0.63004654,3277.2,3276.6,3.05185]
[1720036538320,0.63004654,3277.1,3276.6,3.05185]
[1720036538846,0.63004654,3277.2,3276.6,3.05185]
[1720036539160,3.62845086,3277.2,3276.6,3.05185]
[1720036539370,0.62845086,3277.2,3276.6,6.10372]
[1720036539548,0.62845086,3277.3,3276.6,6.7989634]
[1720036540068,0.62845086,3277.4,3276.7,3.05182]
[1720036540223,0.62845086,3277.4,3276.8,3.05174]
[1720036540423,3.0,3277.5,3276.9,3.05164]
[1720036540855,0.62845086,3277.6,3276.9,3.05164]
[1720036541462,0.62845086,3277.5,3276.9,3.05164]
[1720036541669,0.62845086,3277.6,3276.9,3.661978]
[1720036541830,0.62845086,3277.5,3276.9,3.05164]
[1720036542031,0.62845086,3277.5,3277.0,2.2884]
[1720036542263,0.62845086,3277.6,3277.0,2.2884]
[1720036542450,0.62845086,3277.5,3276.5,5.34036]
[1720036542663,0.62845086,3277.5,3276.7,3.05182]
[1720036542664,0.62845086,3277.4,3276.7,3.05182]
[1720036543127,0.62845086,3277.3,3276.7,3.05182]
[1720036543973,0.62845086,3277.3,3276.5,5.34035]
[1720036544185,0.62845086,3277.3,3276.6,0.740335]
[1720036544480,0.62845086,3277.3,3276.5,2.2884]
[1720036544687,0.62845086,3277.1,3276.1,3.05235]
[1720036544837,3.05147,3277.2,3276.1,3.05235]
[1720036544838,0.62845086,3277.0,3276.1,3.05235]
[1720036545045,0.62845086,3276.9,3276.1,4.097982]
[1720036545737,0.62845086,3276.9,3276.0,2.2884]
[1720036545963,0.62845086,3276.8,3276.0,2.2884]
[1720036546358,0.62845086,3276.8,3276.0,5.34089]
[1720036546559,0.62845086,3276.8,3276.0,8.39332]
[1720036547268,0.62845086,3276.9,3276.0,4.3514]
[1720036547471,0.62845086,3276.9,3276.4,3.05211]
[1720036547472,3.0,3276.9,3276.4,3.05211]
[1720036547641,0.62845086,3277.0,3276.4,3.1131451]
[1720036547839,0.62832587,3277.1,3276.4,3.1131451]
[1720036548270,0.62832587,3277.0,3276.5,3.05203]
[1720036548459,0.62832587,3277.2,3276.5,3.11306323]
[1720036548774,0.62832587,3277.2,3276.5,3.72959055]
[1720036549072,0.62832587,3277.2,3276.5,0.61652732]
[1720036549264,0.62832587,3276.9,3276.2,3.0523]
[1720036549469,0.62832587,3277.0,3276.2,3.0523]
[1720036549661,0.62832587,3276.9,3276.2,3.0523]
[1720036549863,0.62832587,3276.9,3276.3,0.348744]
[1720036550253,0.62832587,3277.0,3276.3,0.348744]
[1720036550478,0.62832587,3277.1,3276.3,0.348744]
[1720036550974,0.62764983,3277.0,3276.3,0.348744]
[1720036551897,0.62764983,3276.9,3276.1,3.48754]
[1720036552061,0.62764983,3276.8,3276.1,3.48754]
[1720036553189,3.05158,3277.0,3276.1,3.48754]
[1720036553351,0.62724868,3276.8,3276.1,3.48754]
[1720036553557,0.62724868,3276.8,3276.2,0.577594]
[1720036553782,3.67900868,3276.8,3276.0,2.2884]
[1720036553982,3.05199,3276.6,3276.0,2.2884]
[1720036554157,0.62724868,3276.5,3276.0,2.2884]
[1720036556067,0.62724868,3276.6,3276.0,2.2884]
[1720036556303,3.99270303,3276.8,3276.0,2.2884]
[1720036556304,0.62724868,3276.7,3276.1,0.22884]
[1720036557167,0.62657738,3276.7,3276.1,0.22884]
[1720036559863,0.52855523,3276.6,3276.1,0.22884]
[1720036560063,0.62657738,3276.6,3276.1,0.22884]
[1720036560312,3.05186,3276.7,3276.1,0.22884]
[1720036560482,0.626659,3276.6,3276.1,0.22884]
[1720036561090,3.678519,3276.7,3276.1,0.22884]
[1720036561294,1.15522413,3276.6,3276.0,2.2884]
[1720036561484,0.52856513,3276.5,3276.0,2.2884]
[1720036562705,0.626659,3276.5,3276.0,2.2884]
[1720036565613,0.626659,3276.4,3276.0,2.2884]
[1720036565903,0.626659,3276.5,3276.0,2.2884]
[1720036566207,0.626659,3276.6,3276.2,3.05225]
[1720036566391,0.626659,3276.7,3276.3,0.06103646]
[1720036566564,0.626659,3276.8,3276.4,2.3404]
[1720036567472,0.9399885,3276.6,3276.4,2.3404]
[1720036568502,0.9399885,3276.5,3276.4,2.3404]
[1720036569515,1.253318,3276.5,3276.4,2.3404]
[1720036570364,5.15265436,3276.5,3276.1,0.2349444]
[1720036570564,1.25916844,3276.2,3275.8,2.2894]
[1720036570803,0.62951881,3275.9,3275.8,2.2894]
[1720036570971,0.94424437,3276.5,3275.8,5.34204]
[1720036571174,0.94424437,3276.2,3275.8,5.34202]
[1720036571468,0.94424437,3276.1,3275.9,3.586732]
[1720036571907,0.94424437,3276.2,3275.9,3.586732]
[1720036572468,0.94424437,3276.1,3275.9,3.586732]
[1720036572976,0.94424437,3276.1,3276.0,3.0525]
[1720036573173,0.94424437,3276.2,3275.9,0.534202]
[1720036573422,1.25916844,3276.3,3275.8,2.2894]
[1720036573423,1.57445058,3276.1,3275.8,2.2894]
[1720036573725,1.26026889,3275.9,3275.8,2.2894]
[1720036574201,1.57445058,3276.0,3275.8,2.2894]
[1720036574515,1.57445058,3276.0,3275.8,2.51834]
[1720036575003,1.57600483,3276.0,3275.8,2.51834]
[1720036575371,1.57605874,3276.0,3275.8,2.51834]
[1720036575572,1.57605874,3275.9,3275.8,2.51834]
[1720036576213,1.57605874,3275.9,3275.4,2.732908]
[1720036576410,1.57605874,3275.6,3274.8,2.4276]
[1720036576584,0.94562226,3275.1,3274.8,2.4276]
[1720036576886,1.26082968,3274.9,3274.8,2.67036]
[1720036577090,1.57605874,3275.0,3274.8,2.67036]
[1720036577304,1.57605874,3274.9,3274.1,2.4276]
[1720036577466,0.94491872,3274.4,3274.1,2.4276]
[1720036578310,0.94491872,3274.5,3274.1,2.4276]
[1720036579404,0.94491872,3274.6,3274.1,2.4276]
[1720036580883,0.62864017,3274.4,3274.1,2.4276]
[1720036581087,0.62864017,3274.4,3274.2,0.548191]
[1720036581295,0.62864017,3274.5,3274.2,0.548191]
[1720036581820,0.62864017,3274.5,3274.3,2.3417]
[1720036582107,0.62864017,3274.6,3274.3,2.3417]
[1720036582313,0.62864017,3274.7,3274.3,2.3417]
[1720036582476,0.62864017,3274.7,3274.3,2.9361091]
[1720036584093,0.62594312,3274.7,3274.3,2.9361091]
[1720036584304,0.62594312,3274.8,3274.3,2.9361091]
[1720036584915,0.62594312,3274.9,3274.3,2.9361091]
[1720036585195,0.62594312,3274.8,3274.3,2.9361091]
[1720036585405,0.62594312,3274.8,3274.4,0.59902691]
[1720036586335,0.62594312,3274.9,3274.4,0.59902691]
[1720036587258,0.62594312,3275.1,3274.5,3.11496158]
[1720036587534,0.62594312,3274.8,3274.4,0.59902691]
[1720036587746,3.05344,3275.0,3274.3,2.3417]
[1720036588037,0.62750624,3274.7,3274.3,2.3417]
[1720036590110,3.05419,3274.2,3273.8,2.2561]
[1720036590418,3.05419,3274.2,3272.9,2.3937]
[1720036590749,0.62750624,3274.1,3273.1,3.05515]
[1720036590960,0.62750624,3274.1,3273.2,3.0551]
[1720036591245,3.05419,3274.2,3273.4,3.05492]
[1720036591246,0.62750624,3274.2,3273.4,3.05492]
[1720036591444,3.68159624,3274.3,3273.5,0.610993]
[1720036591629,3.05418,3274.2,3273.5,0.610993]
[1720036591834,3.68168624,3274.2,3273.3,3.05501]
[1720036592341,3.05418,3274.2,3273.3,3.05501]
[1720036593346,3.05418,3274.2,3273.3,3.05493]
[1720036595544,3.05418,3274.2,3273.4,3.05492]
[1720036595722,3.05418,3274.2,3273.5,2.4186]
[1720036595926,3.05418,3274.2,3273.6,0.547352]
[1720036596118,6.10807,3274.4,3273.6,0.547352]
[1720036596448,3.05409,3274.3,3273.6,0.547352]
[1720036599444,3.05401,3274.4,3273.6,0.547352]
[1720036599635,6.10807,3274.4,3273.6,0.547352]
[1720036599945,6.10807,3274.4,3273.7,0.2965952]
[1720036600112,0.62750624,3274.6,3273.5,2.4186]
[1720036600113,3.05424,3274.2,3273.5,2.4186]
[1720036600538,3.05428,3274.1,3273.5,2.4186]
[1720036600735,6.10863,3274.1,3273.5,2.4186]
[1720036601226,3.05428,3274.1,3273.5,2.4186]
[1720036601434,3.05428,3274.1,3273.6,0.24186]
[1720036601931,6.10862,3274.1,3273.6,0.24186]
[1720036603445,3.05437,3274.0,3273.6,0.24186]
[1720036604684,3.0547,3273.7,3273.0,2.2577]
[1720036605750,3.055,3273.4,3272.9,0.511856]
[1720036605952,3.055,3273.4,3272.6,2.4246]
[1720036605953,3.05502,3273.3,3272.6,2.4246]
[1720036606693,3.05502,3273.3,3272.7,0.0257952]
[1720036607254,3.05502,3273.3,3272.6,2.4246]
[1720036608515,3.05518,3273.2,3272.6,2.4246]
[1720036608660,3.05549,3272.8,3272.1,2.4246]
[1720036613065,3.05549,3272.8,3272.3,2.063]
[1720036613271,3.0553,3273.0,3272.3,2.063]
[1720036613272,3.05539,3272.9,3272.3,2.063]
[1720036615184,3.0553,3273.0,3272.3,2.063]
[1720036615503,3.0553,3273.0,3272.4,0.2063]
[1720036615736,6.11035,3273.2,3272.4,0.2063]
[1720036616000,6.11034,3273.2,3272.7,2.063]
[1720036616210,3.05515,3273.2,3272.7,2.063]
[1720036616367,10.48486,3273.5,3272.8,2.2709]
[1720036616569,3.0547,3273.7,3273.2,2.063]
[1720036616765,3.05479,3273.6,3273.2,2.063]
[1720036617013,3.05461,3273.8,3273.2,2.063]
[1720036617311,3.05461,3273.8,3273.2,2.2693]
[1720036617477,3.05451,3273.9,3273.2,2.063]
[1720036618302,3.05456,3273.8,3273.2,2.063]
[1720036618485,3.0,3273.7,3273.2,2.063]
[1720036618686,3.05458,3273.8,3273.2,2.063]
[1720036618887,8.05618214,3274.1,3273.3,2.36229471]
[1720036618888,11.11053214,3274.1,3273.3,2.36229471]
[1720036619094,10.48435,3274.1,3273.3,2.80482418]
[1720036619306,8.05618214,3274.1,3273.3,2.80482418]
[1720036619489,8.05618214,3274.1,3273.6,2.063]
[1720036619697,3.68050214,3274.1,3273.6,2.063]
[1720036619893,3.58339492,3274.0,3273.6,2.063]
[1720036620197,3.05442,3274.0,3273.3,2.74372947]
[1720036620404,6.05451,3273.9,3273.3,2.74372947]
[1720036621203,6.68069214,3273.9,3273.3,2.74372947]
[1720036621827,0.62618214,3273.8,3273.3,2.74372947]
[1720036622317,0.62618214,3273.7,3273.3,2.74372947]
[1720036623414,0.62618214,3273.7,3273.3,2.3012]
[1720036623781,0.62618214,3273.6,3273.3,2.3012]
[1720036624927,0.62817082,3273.6,3273.3,2.3012]
[1720036625213,0.62817082,3273.5,3273.3,2.3012]
[1720036625711,0.62817082,3273.6,3273.3,2.3012]
[1720036626079,0.62817082,3273.5,3273.3,2.3012]
[1720036628283,0.62817082,3273.4,3272.6,5.54379]
[1720036628503,0.62844925,3273.3,3272.9,2.063]
[1720036628707,0.62844925,3273.2,3272.9,2.063]
[1720036629015,0.62844925,3273.1,3272.9,2.063]
[1720036629219,0.62844925,3273.2,3272.9,2.063]
[1720036629402,3.68380925,3273.0,3272.6,2.4882]
[1720036629611,0.62844925,3272.9,3272.6,2.4882]
[1720036629816,3.99761624,3273.0,3272.6,2.4882]
[1720036629817,0.62844925,3272.8,3272.6,2.4882]
[1720036631123,3.99789624,3272.7,3272.0,2.3054]
[1720036631332,0.62829573,3272.4,3272.0,2.3054]
[1720036631628,0.62829573,3272.3,3272.0,2.3054]
[1720036631989,0.62829573,3272.4,3272.0,2.3054]
[1720036632212,0.62829573,3272.4,3272.0,2.6420874]
[1720036632411,0.62829573,3272.3,3272.0,2.6420874]
[1720036632886,3.68431573,3272.3,3271.9,2.063]
[1720036633105,0.62829573,3272.2,3271.7,4.6245153]
[1720036633497,0.62829573,3272.1,3271.7,4.6245153]
[1720036634133,0.62829573,3272.1,3271.8,0.06112285]
[1720036634305,0.62829573,3272.1,3271.9,0.46856382]
[1720036637195,0.62834862,3272.1,3271.9,0.46856382]
[1720036637695,0.62834862,3272.0,3271.7,2.5615153]
[1720036638514,0.62834862,3271.9,3271.7,2.5615153]
[1720036639229,0.62834862,3272.0,3271.7,2.5615153]
[1720036639404,0.62834862,3272.0,3271.9,2.063]
[1720036640541,0.62834862,3272.0,3271.9,2.06191097]
[1720036641023,0.62834862,3272.0,3271.7,2.5615153]
[1720036641223,0.62834862,3272.0,3271.9,2.063]
[1720036641729,0.62816279,3272.0,3271.9,2.063]
[1720036642960,0.62816279,3272.0,3271.9,5.58177153]
[1720036643109,0.62816279,3272.4,3272.0,2.3784]
[1720036643428,0.62816279,3272.6,3272.4,3.05585]
[1720036643754,0.62816279,3272.7,3272.4,6.66832353]
[1720036643954,0.94252293,3272.8,3272.4,6.66832353]
[1720036643955,0.62816279,3272.8,3272.6,5.11861]
[1720036644249,0.62816279,3272.9,3272.6,5.16346616]
[1720036644618,0.58269797,3272.9,3272.6,6.27439028]
[1720036644947,0.58269797,3272.9,3272.6,6.22953412]
[1720036645151,0.94252293,3273.0,3272.6,2.063]
[1720036645348,0.94252293,3272.9,3272.6,2.063]
[1720036645852,1.25721402,3273.0,3272.6,2.063]
[1720036646005,0.94291051,3272.8,3272.6,2.063]
[1720036646406,0.94291051,3272.8,3272.7,3.05558]
[1720036646639,0.94291051,3273.1,3272.7,3.805278]
[1720036646844,0.94291051,3273.2,3272.7,3.805278]
[1720036647045,0.94291051,3273.2,3273.0,2.063]
[1720036648765,0.94291051,3273.2,3273.0,5.11829]
[1720036648922,0.94358574,3273.2,3273.0,5.11829]
[1720036649310,0.94358574,3273.1,3273.0,5.11829]
[1720036649514,0.94358574,3273.1,3273.0,5.65483787]
[1720036650753,0.94358574,3273.2,3273.1,3.0552]
[1720036651818,0.94358574,3273.2,3273.1,8.4785]
[1720036652043,0.94358574,3273.2,3273.1,10.21633553]
[1720036655952,0.6291051,3273.4,3273.3,3.05502]
[1720036657277,0.6291051,3273.4,3273.3,6.11004]
[1720036657663,0.6291051,3273.4,3273.1,4.10593553]
[1720036657664,0.62911419,3273.5,3273.4,3.05492]
[1720036657973,0.62911419,3273.5,3273.4,5.43975024]
[1720036658151,0.62911419,3273.6,3273.5,6.10966]
[1720036658741,0.62911419,3273.7,3273.6,3.05474]
[1720036661870,0.94376627,3273.9,3273.7,3.05459]
[1720036662074,0.62926811,3273.8,3273.7,3.05459]
[1720036662275,0.94376627,3273.9,3273.7,3.05459]
[1720036662450,0.62932253,3273.8,3273.7,3.11561291]
[1720036662782,0.62932253,3273.8,3273.7,3.05459]
[1720036662939,0.94376627,3273.9,3273.7,3.05459]
[1720036663276,0.62931342,3273.8,3273.7,3.05459]
[1720036665697,0.94376627,3273.9,3273.7,3.05459]
[1720036665991,3.94376627,3273.9,3273.6,3.05467]
[1720036666154,0.94376627,3273.8,3273.4,5.11786]
[1720036666496,0.62921916,3273.6,3273.4,5.11786]
[1720036666694,0.62921916,3273.5,3273.4,2.063]
[1720036667198,0.62921916,3273.5,3273.4,5.11792]
[1720036667493,0.62921916,3273.6,3273.4,5.11792]
[1720036668077,0.62921916,3273.6,3273.4,5.11786]
[1720036668674,0.62921916,3273.6,3273.4,2.063]
[1720036668992,1.10106481,3273.6,3273.1,2.063]
[1720036669161,1.10106481,3273.6,3272.8,5.35903]
[1720036669162,0.62921243,3273.2,3272.8,2.3036]
[1720036669363,0.62921243,3273.1,3272.4,2.3036]
[1720036669587,0.62921243,3272.7,3272.5,2.063]
[1720036669897,0.62921243,3272.8,3272.5,5.860999]
[1720036670259,0.62921243,3272.8,3272.2,3.05604]
[1720036670459,0.62921243,3272.6,3272.3,2.063]
[1720036670688,0.62921243,3272.6,3272.5,5.11876]
[1720036670892,0.62921243,3272.7,3272.5,5.11876]
[1720036671102,0.62921243,3272.8,3272.5,5.11876]
[1720036671276,0.62921243,3272.8,3272.5,5.936222]
[1720036671477,0.62921243,3272.8,3272.6,3.05566]
[1720036671701,0.62921243,3272.9,3272.6,3.05566]
[1720036671859,0.62921243,3272.9,3272.8,2.063]
[1720036672562,0.62921243,3272.9,3272.8,2.12410421]
[1720036673006,0.62921243,3272.9,3272.8,3.19225563]
[1720036673161,0.62921243,3273.0,3272.8,3.19225563]
[1720036673570,0.62921243,3273.1,3272.8,6.24773563]
[1720036675060,0.62921243,3273.1,3272.4,3.05579]
[1720036675361,0.62921243,3273.1,3272.6,2.063]
[1720036675558,0.62921243,3272.7,3272.6,2.063]
[1720036675960,0.62921243,3272.8,3272.6,2.063]
[1720036677367,0.62921243,3272.7,3272.6,2.063]
[1720036677566,0.62921243,3272.8,3272.6,2.063]
[1720036677889,0.94376627,3272.7,3272.6,2.063]
[1720036678086,0.94376627,3272.8,3272.6,2.063]
[1720036678286,0.62895622,3272.7,3272.6,2.063]
[1720036678598,0.62895622,3272.8,3272.6,2.063]
[1720036678966,0.62895622,3272.7,3272.6,2.063]
[1720036679165,0.62895622,3272.8,3272.6,2.063]
[1720036679702,0.62895622,3272.7,3272.6,2.063]
[1720036680203,0.94376627,3272.8,3272.6,2.063]
[1720036680369,0.94376627,3272.7,3272.6,2.063]
[1720036680789,1.25835502,3272.8,3272.6,2.063]
[1720036681300,1.25835502,3272.7,3272.6,2.063]
[1720036682304,0.28309935,3272.7,3272.1,2.4462]
[1720036682506,0.62908272,3272.3,3272.1,2.4462]
[1720036682875,0.94362409,3272.4,3272.1,2.4462]
[1720036682876,0.62908272,3272.2,3272.1,2.4462]
[1720036683580,0.94362409,3272.9,3272.5,3.05576]
[1720036683911,0.94362409,3272.8,3272.3,2.4462]
[1720036684109,0.94362409,3272.7,3272.4,2.063]
[1720036684408,0.94362409,3272.5,3272.4,2.063]
[1720036684767,0.94362409,3272.5,3272.4,5.56978]
[1720036685009,3.0,3273.1,3272.4,5.56978]
[1720036685173,0.94383574,3272.7,3272.4,2.51392]
[1720036685371,0.94383574,3272.6,3272.4,2.51392]
[1720036685720,1.25844765,3272.6,3272.4,2.063]
[1720036686101,0.94395293,3272.5,3272.4,2.063]
[1720036686464,1.25844765,3272.6,3272.4,2.063]
[1720036686895,1.25844765,3272.6,3272.5,3.05576]
[1720036687115,3.94413778,3272.7,3272.5,5.32196]
[1720036687367,3.94413778,3272.7,3272.5,3.05576]
[1720036687368,1.25844765,3272.7,3272.5,3.05576]
[1720036687720,1.57326008,3272.8,3272.5,3.05576]
[1720036687721,1.25844765,3272.6,3272.5,3.05576]
[1720036688815,4.25844765,3272.7,3272.5,3.05576]
[1720036688971,0.94442072,3272.6,3272.5,3.58617035]
[1720036689169,1.25844765,3272.7,3272.6,3.05567]
[1720036691016,1.25844765,3272.7,3272.6,8.37754]
[1720036691221,2.20291666,3273.0,3272.9,3.05539]
[1720036691503,0.94446901,3273.0,3272.9,5.11839]
[1720036691667,0.94446901,3273.0,3272.9,5.935782]
[1720036692586,0.94446901,3273.0,3272.9,8.991172]
[1720036692899,0.94446901,3273.5,3273.4,6.10984]
[1720036693094,0.94446901,3273.6,3273.5,3.05483]
[1720036693408,0.94516942,3273.6,3273.5,3.05483]
[1720036694112,7.43,3274.1,3273.5,3.05483]
[1720036694306,0.94511366,3273.6,3273.5,3.05483]
[1720036695509,1.26015155,3273.7,3273.5,3.05483]
[1720036695719,0.94498444,3273.6,3273.5,3.05483]
[1720036695901,0.94498444,3273.6,3273.4,6.034355]
[1720036696099,0.94497302,3273.5,3273.4,5.11786]
[1720036696296,1.26015155,3273.7,3273.5,3.05483]
[1720036696527,0.94495119,3273.6,3273.5,3.05483]
[1720036696733,1.26015155,3273.7,3273.5,3.05483]
[1720036696889,1.26015155,3273.7,3273.4,2.063]
[1720036697094,1.26015155,3273.6,3273.4,2.063]
[1720036697324,0.94485314,3273.5,3273.4,2.063]
[1720036697615,0.63003891,3273.5,3273.4,5.935231]
[1720036697922,0.63003891,3273.6,3273.5,6.10966]
[1720036698688,0.63003891,3273.7,3273.6,6.10948]
[1720036698887,0.63003891,3273.8,3273.7,3.05464]
[1720036699140,0.63003891,3273.8,3273.7,6.10928]